bitfinex/quotes_SOLUSD_20240813
["timestamp","ask_amount","ask_price","bid_price","bid_amount"]
[1723550815954,6.8435,146.13,146.12,0.37647]
[1723550817772,21.86,146.14,146.08,45.0]
[1723550817773,6.8436,146.12,146.08,45.0]
[1723550818070,6.8436,146.12,146.09,6.845]
[1723550818246,6.8434,146.13,146.1,45.0]
[1723550818448,6.8437,146.12,146.1,45.0]
[1723550818683,6.8437,146.12,146.09,45.0]
[1723550819253,6.8437,146.12,146.1,0.50196]
[1723550821257,6.8441,146.11,146.1,0.12549]
[1723550821564,6.8441,146.11,146.07,23.9597]
[1723550821759,6.8437,146.12,146.08,6.8455]
[1723550822075,21.86,146.14,146.09,6.845]
[1723550822253,6.8437,146.12,146.08,6.8453]
[1723550822768,6.8437,146.12,146.1,0.12549]
[1723550822959,26.8434,146.13,146.1,0.12549]
[1723550823655,21.8212,146.17,146.12,0.12549]
[1723550823979,6.8428,146.14,146.12,0.12549]
[1723550824875,6.8428,146.14,146.11,0.12549]
[1723550825077,6.8424,146.15,146.11,52.34596]
[1723550826278,6.8427,146.14,146.11,52.34596]
[1723550826650,6.8424,146.15,146.11,52.34596]
[1723550827764,21.8212,146.17,146.12,17.1091]
[1723550828082,20.0,146.16,146.13,52.34506]
[1723550828287,20.0,146.16,146.14,6.8426]
[1723550828486,20.0,146.16,146.15,0.12549]
[1723550828698,20.0,146.16,146.15,0.25098]
[1723550828978,20.0,146.16,146.15,0.50196]
[1723550829892,6.8411,146.18,146.15,45.50196]
[1723550830049,6.8411,146.18,146.16,0.12549]
[1723550830255,6.8411,146.18,146.16,0.37647]
[1723550830484,21.8021,146.2,146.17,0.25098]
[1723550830686,6.8406,146.19,146.17,0.25098]
[1723550830986,16.5466,146.24,146.19,0.12549]
[1723550831163,6.2456,146.25,146.19,0.12549]
[1723550831359,6.8384,146.24,146.21,0.12549]
[1723550831866,6.8384,146.24,146.21,1.29458311]
[1723550832382,6.8384,146.24,146.22,0.37647]
[1723550834187,6.8385,146.23,146.22,0.50196]
[1723550834571,6.8381,146.24,146.23,0.12549]
[1723550834763,26.8381,146.24,146.23,0.12549]
[1723550836082,6.84,146.2,146.16,23.9461]
[1723550836290,20.0,146.24,146.16,17.1043]
[1723550836470,37.0966,146.23,146.16,17.1043]
[1723550836670,20.0,146.23,146.16,17.1043]
[1723550837094,6.8398,146.21,146.17,6.8412]
[1723550837387,6.8391,146.22,146.18,7.09158]
[1723550837571,6.8391,146.22,146.19,45.25098]
[1723550837773,6.8394,146.21,146.2,0.25098]
[1723550838085,20.0,146.23,146.2,0.50196]
[1723550838297,6.8393,146.22,146.21,0.12549]
[1723550838457,26.8393,146.22,146.21,0.12549]
[1723550839471,20.0,146.22,146.19,45.12549]
[1723550839673,6.8394,146.21,146.2,0.12549]
[1723550841168,67.5631,146.21,146.12,17.1081]
[1723550841485,67.5631,146.21,146.09,17.9138]
[1723550841486,6.3018,146.18,146.09,17.9138]
[1723550841690,20.0,146.17,146.09,17.9138]
[1723550841888,17.1047,146.16,146.06,20.3506]
[1723550842063,17.1047,146.16,146.06,3.2353]
[1723550842265,51.52,146.17,146.08,17.1137]
[1723550842585,6.8418,146.16,146.12,6.8435]
[1723550842783,20.0,146.17,146.07,34.2278]
[1723550842988,26.8413,146.17,146.13,6.8429]
[1723550843166,26.8413,146.17,146.14,45.50196]
[1723550843361,13.1428,146.18,146.14,52.34466]
[1723550843565,16.0431,146.21,146.14,45.50196]
[1723550843771,6.8399,146.2,146.17,0.12549]
[1723550844095,6.8404,146.19,146.17,45.50196]
[1723550844392,6.8404,146.19,146.17,0.37647]
[1723550844765,6.8404,146.19,146.18,0.12549]
[1723550844963,26.8404,146.19,146.18,0.37647]
[1723550845268,20.0,146.19,146.18,0.50196]
[1723550845571,20.0,146.19,146.18,45.50196]
[1723550846589,6.3371,146.22,146.19,0.12549]
[1723550846786,20.0,146.21,146.19,0.25098]
[1723550847002,20.0,146.21,146.2,0.37647]
[1723550847182,20.0,146.21,146.2,0.50196]
[1723550847365,20.0,146.21,146.2,0.25098]
[1723550847366,26.8394,146.21,146.2,0.25098]
[1723550847689,6.8407,146.19,146.15,6.8422]
[1723550847875,6.8408,146.18,146.17,0.12549]
[1723550848491,6.8408,146.18,146.16,0.25098]
[1723550848789,6.8418,146.16,146.12,6.8436]
[1723550849002,6.8426,146.15,146.11,23.9531]
[1723550849162,48.6212,146.19,146.11,17.1093]
[1723550849507,20.0,146.18,146.11,17.1093]
[1723550849977,20.0,146.18,146.13,17.1077]
[1723550850182,6.841,146.18,146.14,6.8426]
[1723550850373,6.8413,146.17,146.13,23.9507]
[1723550851189,6.8419,146.16,146.14,0.25098]
[1723550851379,6.8419,146.16,146.14,45.25098]
[1723550851572,6.8415,146.17,146.14,45.25098]
[1723550851778,6.8415,146.17,146.15,0.25098]
[1723550851985,20.0,146.2,146.16,0.12549]
[1723550852186,20.0,146.2,146.17,0.12549]
[1723550852391,20.0,146.2,146.17,0.25098]
[1723550852592,6.8413,146.17,146.16,0.12549]
[1723550853570,31.52,146.17,146.09,17.1123]
[1723550853771,15.3046,146.19,146.04,0.8022]
[1723550853772,37.9233,146.15,146.04,0.8022]
[1723550853981,6.8439,146.12,146.08,6.8452]
[1723550854269,37.9233,146.15,146.04,0.8022]
[1723550854468,20.0,146.14,146.05,31.52]
[1723550854668,26.8427,146.14,146.1,23.9557]
[1723550855795,26.8427,146.14,146.11,45.12549]
[1723550855994,26.8427,146.14,146.12,0.12549]
[1723550857001,20.0,146.14,146.12,0.12549]
[1723550857200,26.843,146.14,146.12,0.37647]
[1723550859110,15.3046,146.19,146.12,0.37647]
[1723550859403,6.8409,146.18,146.15,0.12549]
[1723550859567,6.8409,146.18,146.15,45.37647]
[1723550859767,6.8409,146.18,146.16,0.12549]
[1723550861976,6.8409,146.18,146.17,0.12549]
[1723550862180,26.8409,146.18,146.17,0.37647]
[1723550862380,26.8409,146.18,146.17,0.50196]
[1723550862980,6.1094,146.2,146.17,0.50196]
[1723550863302,20.0,146.19,146.18,0.12549]
[1723550863602,20.0,146.19,146.18,0.37647]
[1723550863785,20.0,146.19,146.18,0.50196]
[1723550863786,26.8404,146.19,146.18,0.50196]
[1723550866384,26.8404,146.19,146.18,0.12549]
[1723550867210,20.0,146.19,146.15,45.0]
[1723550867512,6.8413,146.17,146.14,0.25098]
[1723550868573,20.0,146.19,146.14,0.25098]
[1723550868777,20.0,146.19,146.15,0.12549]
[1723550868778,6.8415,146.17,146.15,0.12549]
[1723550868973,6.8415,146.17,146.15,45.37647]
[1723550869178,6.8411,146.18,146.15,45.37647]
[1723550869394,6.8411,146.18,146.16,0.12549]
[1723550869881,6.8411,146.18,146.17,0.12549]
[1723550870084,6.8411,146.18,146.17,0.25098]
[1723550871225,6.8411,146.18,146.17,0.12549]
[1723550873195,20.0,146.19,146.17,0.12549]
[1723550873509,6.8408,146.18,146.17,0.12549]
[1723550876023,26.8404,146.19,146.17,0.12549]
[1723550876222,6.8408,146.18,146.17,0.12549]
[1723550877299,26.8405,146.19,146.17,0.12549]
[1723550878010,20.0,146.19,146.17,0.12549]
[1723550878316,20.0,146.19,146.17,0.37647]
[1723550878519,20.0,146.19,146.17,0.25098]
[1723550878695,20.0,146.19,146.17,0.12549]
[1723550879217,6.8408,146.18,146.17,0.12549]
[1723550880119,28.55129597,146.18,146.17,0.12549]
[1723550880419,6.8415,146.17,146.13,6.843]
[1723550880597,6.8415,146.17,146.14,45.0]
[1723550881421,26.841,146.18,146.15,0.25098]
[1723550881614,26.841,146.18,146.16,0.12549]
[1723550881801,6.8413,146.17,146.16,0.12549]
[1723550882909,20.0,146.18,146.16,0.12549]
[1723550883224,20.0,146.18,146.17,0.12549]
[1723550883430,12.9496,146.2,146.17,0.12549]
[1723550883740,26.8405,146.19,146.17,45.25098]
[1723550883908,6.8408,146.18,146.16,0.25098]
[1723550887528,20.0,146.19,146.16,0.25098]
[1723550887743,6.8413,146.17,146.16,0.12549]
[1723550889108,37.1034,146.17,146.08,17.1128]
[1723550889310,12.6,146.16,146.09,20.0]
[1723550889732,6.8428,146.14,146.1,6.8443]
[1723550890047,12.6,146.18,146.09,32.6]
[1723550890241,23.2097,146.2,146.09,32.6]
[1723550890242,20.0,146.17,146.13,0.12549]
[1723550890415,20.0,146.17,146.14,6.8424]
[1723550890606,20.0,146.17,146.15,0.50196]
[1723550890812,20.0,146.17,146.15,45.50196]
[1723550892418,26.8413,146.17,146.15,45.50196]
[1723550893029,26.8413,146.17,146.15,0.50196]
[1723550893817,6.8418,146.16,146.15,0.50196]
[1723550895214,6.8418,146.16,146.15,0.37647]
[1723550895412,6.8418,146.16,146.15,0.12549]
[1723550896516,6.1094,146.2,146.15,0.25098]
[1723550896717,6.1094,146.2,146.18,0.12549]
[1723550896958,6.8394,146.21,146.18,0.12549]
[1723550897237,6.8388,146.23,146.2,0.12549]
[1723550897449,6.8388,146.23,146.2,0.25098]
[1723550897641,6.8388,146.23,146.21,0.25098]
[1723550898344,6.1303,146.24,146.21,0.37647]
[1723550898345,6.839,146.22,146.21,0.37647]
[1723550898758,6.8395,146.21,146.18,0.12549]
[1723550898923,6.8395,146.21,146.18,45.50196]
[1723550899324,6.8404,146.19,146.18,45.50196]
[1723550899540,6.8404,146.19,146.18,0.50196]
[1723550899747,6.84,146.2,146.18,0.50196]
[1723550899923,6.8404,146.19,146.18,0.50196]
[1723550900126,12.6,146.22,146.18,0.50196]
[1723550900323,20.0,146.21,146.18,0.50196]
[1723550900740,26.8397,146.21,146.18,0.50196]
[1723550902446,6.84,146.2,146.18,0.50196]
[1723550902950,26.8396,146.21,146.18,0.50196]
[1723550903150,20.0,146.21,146.2,0.12549]
[1723550903359,6.8386,146.23,146.2,45.50196]
[1723550903521,20.0,146.22,146.2,45.50196]
[1723550903723,26.839,146.22,146.2,45.50196]
[1723550903952,26.839,146.22,146.2,0.50196]
[1723550904159,20.0,146.22,146.2,0.50196]
[1723550904339,20.0,146.22,146.2,7.34146]
[1723550904545,12.9684,146.24,146.22,0.12549]
[1723550904759,12.9684,146.24,146.22,0.50196]
[1723550906354,6.8385,146.23,146.22,0.50196]
[1723550906540,12.9684,146.24,146.22,0.50196]
[1723550906930,6.8379,146.25,146.22,0.50196]
[1723550907250,15.69787145,146.26,146.22,0.50196]
[1723550907459,15.69787145,146.26,146.22,17.59906]
[1723550907460,0.10777145,146.26,146.22,17.59906]
[1723550907626,6.94497145,146.26,146.23,45.0]
[1723550907826,6.94497145,146.26,146.24,0.50196]
[1723550909860,12.70777145,146.26,146.19,17.1]
[1723550910046,6.838,146.25,146.21,6.8394]
[1723550910427,6.838,146.25,146.19,17.1]
[1723550910428,6.8381,146.24,146.2,6.8397]
[1723550910931,6.8387,146.23,146.19,23.9403]
[1723550911244,6.8381,146.24,146.2,6.8397]
[1723550911945,6.8376,146.25,146.21,17.0985]
[1723550912460,6.8376,146.25,146.22,45.0]
[1723550912667,6.838,146.24,146.23,0.50196]
[1723550912834,6.8378,146.25,146.23,0.50196]
[1723550913333,0.10777145,146.26,146.23,0.50196]
[1723550913334,6.838,146.24,146.23,0.50196]
[1723550915165,6.838,146.24,146.23,0.12549]
[1723550915532,6.8403,146.2,146.16,6.8415]
[1723550916274,6.8396,146.21,146.17,6.8412]
[1723550916439,6.8399,146.2,146.17,6.8412]
[1723550916965,6.8399,146.2,146.18,45.37647]
[1723550917168,6.8399,146.2,146.19,0.12549]
[1723550917646,6.8395,146.21,146.19,0.12549]
[1723550918164,6.84,146.2,146.16,6.8415]
[1723550918473,6.8391,146.22,146.18,6.8406]
[1723550919337,15.7993,146.23,146.19,62.22619]
[1723550919564,15.7993,146.23,146.2,7.21617]
[1723550919864,15.7993,146.23,146.22,0.12549]
[1723550920046,35.7993,146.23,146.22,0.25098]
[1723550920247,42.6378,146.23,146.22,0.25098]
[1723550920651,42.6378,146.23,146.22,0.37647]
[1723550921874,6.8379,146.25,146.22,0.50196]
[1723550922047,6.8379,146.25,146.24,0.12549]
[1723550922247,6.8379,146.25,146.24,0.25098]
[1723550922768,6.8379,146.25,146.24,0.37647]
[1723550922943,6.8379,146.25,146.24,0.12549]
[1723550923346,26.8379,146.25,146.24,0.12549]
[1723550926067,20.0,146.25,146.22,0.12549]
[1723550926273,20.0,146.25,146.22,0.50196]
[1723550926439,6.8383,146.24,146.22,0.50196]
[1723550927073,6.8385,146.23,146.22,0.50196]
[1723550927254,6.8385,146.23,146.22,0.37647]
[1723550927785,6.8381,146.24,146.22,0.37647]
[1723550930161,6.8385,146.23,146.22,0.37647]
[1723550931190,6.8381,146.24,146.22,0.37647]
[1723550932192,6.8385,146.23,146.22,0.37647]
[1723550933298,6.8382,146.24,146.22,0.37647]
[1723550933592,26.8378,146.25,146.22,0.37647]
[1723550934404,26.8378,146.25,146.23,0.12549]
[1723550934578,26.8378,146.25,146.24,0.12549]
[1723550935092,6.8384,146.24,146.22,0.25098]
[1723550935296,6.8385,146.23,146.22,0.25098]
[1723550935672,6.8385,146.23,146.22,0.12549]
[1723550935978,6.8382,146.24,146.22,0.12549]
[1723550936175,6.8382,146.24,146.21,0.37647]
[1723550936378,6.8382,146.24,146.22,0.25098]
[1723550936600,20.0,146.25,146.23,0.12549]
[1723550936891,0.10777145,146.26,146.23,0.12549]
[1723550936892,6.838,146.24,146.23,0.12549]
[1723550937485,1.70967994,146.25,146.21,0.12549]
[1723550937676,6.8386,146.23,146.21,0.12549]
[1723550937994,6.8382,146.24,146.21,0.12549]
[1723550940200,6.8378,146.25,146.22,0.12549]
[1723550940379,26.94517145,146.26,146.22,52.34066]
[1723550942180,32.70777145,146.26,146.22,0.50196]
[1723550942497,6.8382,146.24,146.22,0.50196]
[1723550943795,20.10777145,146.26,146.22,0.50196]
[1723550943987,0.10777145,146.26,146.25,6.96309]
[1723550944199,0.10777145,146.26,146.25,52.33956]
[1723550944583,0.10777145,146.26,146.25,53.14176]
[1723550944885,0.10777145,146.26,146.25,73.14176]
[1723550945272,6.8324,146.37,146.32,6.95969]
[1723550945584,12.6,146.38,146.34,0.12549]
[1723550945986,6.8334,146.34,146.33,0.37647]
[1723550946193,6.8334,146.34,146.33,0.25098]
[1723550946394,6.833,146.35,146.33,0.25098]
[1723550946705,6.8326,146.36,146.34,0.37647]
[1723550946905,6.8326,146.36,146.35,0.12549]
[1723550947204,34.1648,146.39,146.35,0.12549]
[1723550947495,6.8315,146.38,146.35,0.12549]
[1723550947682,6.8315,146.38,146.36,0.12549]
[1723550947998,6.8315,146.38,146.36,0.37647]
[1723550948302,6.8315,146.38,146.37,0.12549]
[1723550948674,22.2428,146.39,146.37,0.12549]
[1723550948872,12.6,146.41,146.38,0.12549]
[1723550949190,6.8304,146.41,146.38,0.25098]
[1723550949388,6.8297,146.42,146.4,0.12549]
[1723550949584,22.5536,146.43,146.39,0.25098]
[1723550949786,6.8306,146.4,146.39,0.37647]
[1723550950116,6.8306,146.4,146.39,0.50196]
[1723550950290,6.8301,146.41,146.39,0.50196]
[1723550950485,6.8296,146.42,146.4,0.25098]
[1723550950686,6.8296,146.42,146.41,0.25098]
[1723550951005,6.8306,146.4,146.39,0.25098]
[1723550951199,12.6,146.42,146.33,17.0842]
[1723550951582,6.8319,146.38,146.34,51.8333]
[1723550952005,6.8312,146.39,146.34,51.8333]
[1723550952306,6.8328,146.36,146.31,7.5288]
[1723550952511,12.6,146.38,146.3,23.9228]
[1723550952675,6.833,146.35,146.31,6.8347]
[1723550953180,35.4796,146.37,146.27,33.6206]
[1723550953579,6.8335,146.34,146.3,6.8352]
[1723550953779,6.8326,146.36,146.31,6.8344]
[1723550953982,6.8326,146.36,146.32,6.8343]
[1723550954192,6.8326,146.36,146.33,0.25098]
[1723550954505,22.3117,146.37,146.34,0.12549]
[1723550954703,6.8329,146.35,146.34,0.12549]
[1723550955003,6.8329,146.35,146.31,17.0863]
[1723550955004,6.8334,146.34,146.29,6.8355]
[1723550955183,6.8334,146.34,146.3,6.8351]
[1723550955798,18.6782,146.36,146.28,17.0897]
[1723550956008,6.8344,146.32,146.28,23.9255]
[1723550956218,6.0782,146.36,146.29,6.8357]
[1723550956219,6.8339,146.33,146.29,6.8357]
[1723550957303,6.8339,146.33,146.3,45.25098]
[1723550957685,6.0782,146.36,146.3,0.12549]
[1723550957909,6.8335,146.34,146.31,0.12549]
[1723550958079,6.0782,146.36,146.31,7.08538]
[1723550958282,20.0,146.35,146.32,0.12549]
[1723550958482,26.8329,146.35,146.32,0.12549]
[1723550958683,26.8329,146.35,146.33,0.12549]
[1723550958887,20.0,146.35,146.33,0.12549]
[1723550959193,20.0,146.35,146.33,0.25098]
[1723550959500,26.8329,146.35,146.34,0.37647]
[1723550959711,15.4796,146.37,146.35,0.12549]
[1723550959880,15.4796,146.37,146.35,0.37647]
[1723550960079,15.4796,146.37,146.36,0.12549]
[1723550960307,22.3117,146.37,146.36,0.37647]
[1723550960482,22.3117,146.37,146.36,0.12549]
[1723550960904,6.8324,146.36,146.35,0.25098]
[1723550961709,22.3117,146.37,146.35,0.50196]
[1723550961893,22.3117,146.37,146.36,0.37647]
[1723550962094,6.8321,146.37,146.36,0.50196]
[1723550962295,20.0,146.37,146.36,0.50196]
[1723550962494,6.4882,146.4,146.37,0.12549]
[1723550962693,6.8311,146.39,146.37,0.25098]
[1723550963119,6.8315,146.38,146.37,0.12549]
[1723550964003,17.0806,146.37,146.28,17.0903]
[1723550964205,20.0,146.36,146.28,23.9261]
[1723550964416,6.834,146.33,146.29,6.8357]
[1723550965289,6.8335,146.34,146.3,0.37647]
[1723550965488,6.8335,146.34,146.31,0.12549]
[1723550966094,6.8335,146.34,146.32,0.12549]
[1723550966295,20.0,146.36,146.34,0.12549]
[1723550966499,6.8325,146.36,146.33,45.12549]
[1723550966712,6.8325,146.36,146.34,0.25098]
[1723550966887,6.8325,146.36,146.34,0.37647]
[1723550967395,6.8329,146.35,146.34,0.37647]
[1723550967595,6.8329,146.35,146.34,0.50196]
[1723550968004,6.8349,146.31,146.26,24.6229]
[1723550968201,6.8345,146.32,146.27,6.8366]
[1723550968408,6.8345,146.32,146.28,6.8359]
[1723550968716,6.5991,146.34,146.26,17.0919]
[1723550968886,20.0,146.33,146.26,17.0919]
[1723550969084,6.8352,146.3,146.26,23.9287]
[1723550969313,6.8352,146.3,146.26,17.0919]
[1723550969495,6.8352,146.3,146.26,23.9289]
[1723550969893,17.0864,146.32,146.22,42.01613224]
[1723550970096,17.0864,146.32,146.23,20.0]
[1723550970414,6.8348,146.31,146.27,6.8365]
[1723550970602,6.8352,146.3,146.26,6.837]
[1723550971004,6.8352,146.3,146.26,23.9295]
[1723550971310,6.5991,146.34,146.3,6.835]
[1723550971504,6.8341,146.33,146.31,0.12549]
[1723550971713,6.8343,146.32,146.3,0.25098]
[1723550972294,6.8341,146.33,146.31,0.12549]
[1723550973317,6.5991,146.34,146.31,0.12549]
[1723550973318,6.8343,146.32,146.31,0.12549]
[1723550974203,26.8343,146.32,146.31,0.12549]
[1723550976417,20.0,146.32,146.22,7.82293224]
[1723550976624,20.0,146.31,146.22,7.82293224]
[1723550977325,20.0,146.32,146.22,7.82293224]
[1723550977498,6.8365,146.28,146.24,6.838]
[1723550977701,6.8365,146.28,146.25,0.25098]
[1723550978007,6.8366,146.27,146.26,0.25098]
[1723550978191,6.8366,146.27,146.26,0.37647]
[1723550978400,6.8371,146.26,146.22,23.9359]
[1723550979304,6.8368,146.27,146.23,6.8384]
[1723550979618,6.8371,146.26,146.22,23.9359]
[1723550980023,6.8376,146.25,146.22,17.0971]
[1723550980506,6.8376,146.25,146.23,45.50196]
[1723550981824,6.8373,146.26,146.23,45.50196]
[1723550983860,6.334,146.28,146.24,6.838]
[1723550983997,6.334,146.28,146.25,45.50196]
[1723550984195,6.8348,146.31,146.28,0.12549]
[1723550984398,6.8348,146.31,146.28,45.50196]
[1723550984637,20.0,146.3,146.28,0.12549]
[1723550984801,20.0,146.3,146.28,0.50196]
[1723550984999,20.0,146.3,146.28,45.50196]
[1723550985201,6.835,146.31,146.28,45.50196]
[1723550985410,20.0,146.3,146.28,45.50196]
[1723550985614,26.8355,146.3,146.28,45.50196]
[1723550985818,26.8355,146.3,146.29,45.12549]
[1723550986027,26.8355,146.3,146.29,0.50196]
[1723550986206,20.0,146.3,146.29,0.50196]
[1723550986406,26.8352,146.3,146.29,0.50196]
[1723550987305,26.8352,146.3,146.29,0.12549]
[1723550989644,6.8333,146.35,146.32,0.12549]
[1723550989811,21.6436,146.37,146.32,0.37647]
[1723550990006,6.8337,146.34,146.33,0.12549]
[1723550993220,20.0,146.34,146.26,17.0923]
[1723550993439,20.0,146.33,146.26,17.0923]
[1723550993631,6.836,146.29,146.23,17.0952]
[1723550994144,6.836,146.29,146.25,6.8373]
[1723550994837,6.837,146.27,146.23,23.9337]
[1723550995043,51.43,146.33,146.24,0.12549]
[1723550995248,15.4808,146.31,146.23,17.0952]
[1723550995740,6.8357,146.29,146.25,6.8373]
[1723550996554,6.8366,146.27,146.26,45.0]
[1723550996857,6.8366,146.27,146.23,23.9336]
[1723550996858,6.8368,146.27,146.23,23.9336]
[1723550997147,48.5194,146.29,146.2,17.0989]
[1723550997322,6.837,146.27,146.23,6.8383]
[1723550998418,6.837,146.27,146.25,0.12549]
[1723550998618,31.43,146.29,146.24,45.25098]
[1723550998619,6.8373,146.26,146.24,45.25098]
[1723550998935,6.8377,146.25,146.21,6.8394]
[1723550999235,6.8371,146.26,146.21,17.0985]
[1723550999453,6.8368,146.27,146.23,6.8382]
[1723550999634,6.8372,146.26,146.22,6.8389]
[1723550999818,6.8376,146.25,146.21,17.0985]
[1723551000026,6.8376,146.25,146.22,0.12549]
[1723551000243,6.8376,146.25,146.22,45.0]
[1723551000550,6.8381,146.24,146.22,45.0]
[1723551001047,48.522,146.27,146.18,17.1012]
[1723551001223,6.8387,146.23,146.2,6.8399]
[1723551001422,6.8383,146.24,146.2,6.8399]
[1723551002122,6.8385,146.23,146.19,6.8402]
[1723551002330,6.8385,146.23,146.2,45.0]
[1723551002640,6.8385,146.23,146.19,6.84]
[1723551002641,6.8387,146.23,146.19,6.84]
[1723551002848,6.8382,146.24,146.2,6.8398]
[1723551003027,6.8381,146.24,146.2,23.9389]
[1723551003354,22.1491,146.25,146.21,6.8394]
[1723551003557,6.8381,146.24,146.2,23.9389]
[1723551003874,6.8381,146.24,146.21,0.12549]
[1723551004045,15.3114,146.25,146.24,0.12549]
[1723551004642,22.149,146.25,146.24,0.12549]
[1723551005046,15.3114,146.25,146.24,0.12549]
[1723551005359,22.149,146.25,146.24,0.12549]
[1723551005533,22.149,146.25,146.23,0.37647]
[1723551006047,15.3114,146.25,146.24,0.12549]
[1723551006844,22.149,146.25,146.24,0.12549]
[1723551007159,22.149,146.25,146.23,0.12549]
[1723551007160,15.3114,146.25,146.23,0.12549]
[1723551007357,6.838,146.24,146.23,0.12549]
[1723551008562,22.1492,146.25,146.23,0.12549]
[1723551008760,6.8382,146.24,146.22,0.50196]
[1723551008963,6.8385,146.23,146.22,0.50196]
[1723551009151,6.8381,146.24,146.22,0.50196]
[1723551011265,15.3114,146.25,146.22,0.50196]
[1723551012183,15.3114,146.25,146.22,7.34086]
[1723551012345,15.3114,146.25,146.23,45.0]
[1723551012545,22.1493,146.25,146.22,0.37647]
[1723551012745,6.8381,146.24,146.22,0.37647]
[1723551012940,15.3114,146.25,146.22,0.12549]
[1723551012941,6.8385,146.23,146.22,0.12549]
[1723551013169,21.3294,146.25,146.18,6.8406]
[1723551013358,1.70988427,146.24,146.18,6.8406]
[1723551013675,6.8391,146.22,146.18,6.8406]
[1723551014477,6.8391,146.22,146.19,45.0]
[1723551015174,6.8387,146.23,146.19,51.8403]
[1723551015475,6.8383,146.24,146.2,6.96499]
[1723551015775,6.8385,146.23,146.21,0.25098]
[1723551015980,6.8385,146.23,146.22,0.12549]
[1723551016349,28.167,146.25,146.22,0.25098]
[1723551016684,28.167,146.25,146.23,0.25098]
[1723551017065,28.167,146.25,146.24,0.12549]
[1723551017376,48.167,146.25,146.24,0.12549]
[1723551017975,41.3294,146.25,146.2,6.8398]
[1723551018179,41.3294,146.25,146.21,0.50196]
[1723551018372,6.8385,146.23,146.21,0.50196]
[1723551018563,6.839,146.22,146.21,0.50196]
[1723551018877,6.8387,146.23,146.21,0.50196]
[1723551019951,53.2453,146.31,146.21,0.50196]
[1723551020156,20.0,146.3,146.23,0.12549]
[1723551020365,70.3334,146.31,146.23,0.12549]
[1723551020671,6.8362,146.28,146.24,17.0948]
[1723551020878,6.8362,146.28,146.25,45.50196]
[1723551021079,6.8359,146.29,146.25,52.33946]
[1723551021278,6.8362,146.28,146.25,45.50196]
[1723551021654,21.8153,146.31,146.28,0.12549]
[1723551021883,28.6501,146.31,146.28,0.50196]
[1723551022060,15.3671,146.31,146.28,52.33786]
[1723551022261,6.8339,146.33,146.28,52.33786]
[1723551022471,6.8339,146.33,146.29,6.8357]
[1723551022689,6.8339,146.33,146.3,45.50196]
[1723551022977,13.2528,146.34,146.3,52.33716]
[1723551023178,6.8334,146.34,146.32,0.12549]
[1723551023381,15.545,146.35,146.32,0.12549]
[1723551023563,15.545,146.35,146.32,45.50196]
[1723551023896,22.3779,146.35,146.32,45.50196]
[1723551024082,6.8334,146.34,146.32,45.50196]
[1723551024384,6.8334,146.34,146.32,0.50196]
[1723551024562,6.4191,146.37,146.33,6.8334]
[1723551024767,13.2514,146.37,146.34,45.50196]
[1723551024981,6.8326,146.36,146.34,0.25098]
[1723551025157,6.8329,146.35,146.33,0.25098]
[1723551025666,6.8334,146.34,146.33,0.12549]